[Event "7th Cesme Open-B 2019"]
[Site "Cesme"]
[Date "2019.06.30"]
[Round "9"]
[White "Asgharvand, Davood"]
[Black "Algunerhan, Siar"]
[Result "0-1"]
[ECO "D02"]
[WhiteElo "1872"]
[BlackElo "1770"]
[Annotator "NA"]
[PlyCount "92"]
[EventDate "2019.06.24"]
[EventType "swiss"]
[EventCountry "TUR"]
[SourceTitle "playchess.com"]
[Source "ChessBase"]
[SourceQuality "1"]
[TimeControl "5400+30"]

1. d4 {[%emt 0:01:30]} Nf6 {[%emt 0:00:30]} 2. Bf4 {[%emt 0:00:00]} e6 {[%emt 0:00:30]} 3. e3 {[%emt 0:01:00]} d5 {[%emt 0:00:30]} 4. Nf3 {[%emt 0:00:00]} Bd6 {[%emt 0:00:30]} 5. Bg3 {[%emt 0:00:00]} O-O {[%emt 0:01:30]} 6. Bd3 {[%emt 0:00:00]} Nbd7 {[%emt 0:00:30]} 7. Nbd2 {[%emt 0:01:00]} Qe7 {[%emt 0:02:30]} 8. Ne5 {[%emt 0:00:30]} Bxe5 {[%emt 0:02:30]} 9. dxe5 {[%emt 0:01:30]} Ne4 {[%emt 0:00:30]} 10. Bxe4 {[%emt 0:02:30]} dxe4 {[%emt 0:00:00]} 11. Qg4 {[%emt 0:00:30]} f5 {[%emt 0:02:00]} 12. exf6 {[%emt 0:01:30]} Nxf6 {[%emt 0:00:30]} 13. Qf4 {[%emt 0:01:30]} Bd7 {[%emt 0:05:30]} 14. O-O-O {[%emt 0:05:30]} Qb4 {[%emt 0:02:30]} 15. Kb1 {[%emt 0:01:30]} Nd5 {[%emt 0:01:30]} 16. Qe5 {[%emt 0:02:30]} Rf5 {[%emt 0:02:30]} 17. Qd4 {[%emt 0:00:00]} Qxd4 {[%emt 0:00:30]} 18. exd4 {[%emt 0:00:00]} e3 {[%emt 0:00:00]} 19. Nf3 {[%emt 0:01:30]} Bb5 {[%emt 0:03:00]} 20. Rhe1 {[%emt 0:07:30]} exf2 {[%emt 0:05:30]} 21. Bxf2 {[%emt 0:00:30]} Nf4 {[%emt 0:00:30]} 22. Nh4 {[%emt 0:00:30]} Rf6 {[%emt 0:03:30]} 23. Bg3 {[%emt 0:01:30]} Bc6 {[%emt 0:08:30]} 24. Rd2 {[%emt 0:07:30]} Raf8 {[%emt 0:01:30]} 25. b3 {[%emt 0:02:30]} b5 {[%emt 0:01:30]} 26. Re5 {[%emt 0:00:30]} Nd5 {[%emt 0:01:30]} 27. Kb2 {[%emt 0:00:30]} b4 {[%emt 0:01:30]} 28. a3 {[%emt 0:01:30]} a5 {[%emt 0:01:30]} 29. axb4 {[%emt 0:01:30]} axb4 {[%emt 0:00:30]} 30. Be1 {[%emt 0:05:30]} Nc3 {[%emt 0:03:30]} 31. Rd3 {[%emt 0:02:30]} Be4 {[%emt 0:02:30]} 32. Rg3 {[%emt 0:05:30]} Rf2 {[%emt 0:01:30]} 33. Bxf2 {[%emt 0:08:30]} Rxf2 {[%emt 0:00:30]} 34. Rxc3 {[%emt 0:06:30]} bxc3+ {[%emt 0:00:30]} 35. Kxc3 {[%emt 0:00:00]} Rxc2+ {[%emt 0:00:30]} 36. Kb4 {[%emt 0:00:00]} Bd5 {[%emt 0:00:30]} 37. h3 {[%emt 0:10:30]} Rf2 {[%emt 0:04:30]} 38. g4 {[%emt 0:00:30]} c6 {[%emt 0:02:30]} 39. Rxd5 {[%emt 0:06:29]} cxd5 {[%emt 0:00:30]} 40. g5 {[%emt 0:02:45]} Kf7 {[%emt 0:01:30]} 41. Kc5 {[%emt 0:00:23]} h6 {[%emt 0:01:30]} 42. gxh6 {[%emt 0:01:09]} gxh6 {[%emt 0:00:30]} 43. b4 {[%emt 0:00:22]} Kf6 {[%emt 0:00:30]} 44. b5 {[%emt 0:00:49]} Kg5 {[%emt 0:00:00]} 45. Kd6 {[%emt 0:00:09]} Kxh4 {[%emt 0:00:00]} 46. Kxe6 {[%emt 0:00:02]} Rb2 {[%emt 0:00:30]} 0-1

[Event "7th Cesme Open-B 2019"]
[Site "Cesme"]
[Date "2019.06.30"]
[Round "9"]
[White "Uregen, Rafet"]
[Black "Ergani, Efe"]
[Result "1-0"]
[ECO "B07"]
[WhiteElo "1733"]
[BlackElo "1748"]
[Annotator "NA"]
[PlyCount "57"]
[EventDate "2019.06.24"]
[EventType "swiss"]
[EventCountry "TUR"]
[SourceTitle "playchess.com"]
[Source "ChessBase"]
[SourceQuality "1"]
[TimeControl "5400+30"]

1. e4 {[%emt 0:03:30]} c5 {[%emt 0:00:30]} 2. c3 {[%emt 0:00:30]} d6 {[%emt 0:00:00]} 3. d4 {[%emt 0:01:30]} Nf6 {[%emt 0:00:00]} 4. Bd3 {[%emt 0:00:30]} Nbd7 {[%emt 0:01:30]} 5. f4 {[%emt 0:00:30]} e5 {[%emt 0:11:30]} 6. fxe5 {[%emt 0:07:30]} dxe5 {[%emt 0:02:30]} 7. d5 {[%emt 0:00:30]} c4 {[%emt 0:01:30]} 8. Bc2 {[%emt 0:00:30]} Nxe4 {[%emt 0:00:30]} 9. Nf3 {[%emt 0:00:30]} Nef6 {[%emt 0:01:30]} 10. Qe2 {[%emt 0:03:30]} Qc7 {[%emt 0:03:30]} 11. Nbd2 {[%emt 0:05:30]} Nxd5 {[%emt 0:08:30]} 12. Nxc4 {[%emt 0:00:30]} f6 {[%emt 0:05:30]} 13. Nd4 {[%emt 0:21:30]} N7b6 {[%emt 0:04:30]} 14. Nxb6 {[%emt 0:02:30]} Nxb6 {[%emt 0:00:30]} 15. Nb5 {[%emt 0:01:30]} Qd7 {[%emt 0:17:30]} 16. Be3 {[%emt 0:02:30]} Be7 {[%emt 0:11:30]} 17. Rd1 {[%emt 0:08:30]} Qc6 {[%emt 0:01:30]} 18. Bxb6 {[%emt 0:02:30]} Qxb6 {[%emt 0:00:30]} 19. Qc4 {[%emt 0:01:30]} Qe3+ {[%emt 0:04:30]} 20. Kf1 {[%emt 0:00:30]} Bc5 {[%emt 0:00:30]} 21. Nc7+ {[%emt 0:00:30]} Kf8 {[%emt 0:00:30]} 22. Rd8+ {[%emt 0:00:30]} Ke7 {[%emt 0:00:00]} 23. Nd5+ {[%emt 0:00:30]} Kxd8 {[%emt 0:00:00]} 24. Nxe3 {[%emt 0:00:00]} Bb6 {[%emt 0:00:30]} 25. Ke2 {[%emt 0:01:00]} Bd7 {[%emt 0:00:30]} 26. Rd1 {[%emt 0:00:30]} Rc8 {[%emt 0:00:00]} 27. Qf7 {[%emt 0:00:00]} Rc7 {[%emt 0:00:00]} 28. Bf5 {[%emt 0:01:00]} Bd4 {[%emt 0:00:00]} 29. Qd5 {[%emt 0:00:00]} 1-0

[Event "7th Cesme Open-B 2019"]
[Site "Cesme"]
[Date "2019.06.30"]
[Round "9"]
[White "Aydin, Akin"]
[Black "Cil, Batuhan"]
[Result "1-0"]
[ECO "A30"]
[WhiteElo "1726"]
[BlackElo "1740"]
[Annotator "NA"]
[PlyCount "93"]
[EventDate "2019.06.24"]
[EventType "swiss"]
[EventCountry "TUR"]
[SourceTitle "playchess.com"]
[Source "ChessBase"]
[SourceQuality "1"]
[TimeControl "5400+30"]

1. Nf3 {[%emt 0:00:30]} Nf6 {[%emt 0:05:30]} 2. g3 {[%emt 0:00:00]} g6 {[%emt 0:01:30]} 3. b3 {[%emt 0:00:00]} Bg7 {[%emt 0:00:30]} 4. Bb2 {[%emt 0:00:00]} b6 {[%emt 0:00:30]} 5. Bg2 {[%emt 0:00:00]} Bb7 {[%emt 0:00:30]} 6. O-O {[%emt 0:00:30]} O-O {[%emt 0:00:00]} 7. c4 {[%emt 0:00:00]} c5 {[%emt 0:01:00]} 8. Nc3 {[%emt 0:00:00]} d6 {[%emt 0:04:30]} 9. d4 {[%emt 0:00:30]} Nbd7 {[%emt 0:04:30]} 10. d5 {[%emt 0:01:30]} a6 {[%emt 0:03:30]} 11. a4 {[%emt 0:02:30]} Ne8 {[%emt 0:04:30]} 12. e4 {[%emt 0:01:30]} Nc7 {[%emt 0:03:30]} 13. Qe2 {[%emt 0:05:30]} Rb8 {[%emt 0:02:30]} 14. Rab1 {[%emt 0:07:30]} Bc8 {[%emt 0:01:30]} 15. Bh3 {[%emt 0:00:30]} b5 {[%emt 0:09:30]} 16. axb5 {[%emt 0:04:30]} axb5 {[%emt 0:00:30]} 17. Nxb5 {[%emt 0:00:30]} Nxb5 {[%emt 0:00:30]} 18. Bxg7 {[%emt 0:02:30]} Kxg7 {[%emt 0:00:30]} 19. cxb5 {[%emt 0:00:00]} Ne5 {[%emt 0:04:30]} 20. Bxc8 {[%emt 0:04:00]} Nxf3+ {[%emt 0:00:30]} 21. Qxf3 {[%emt 0:00:30]} Qxc8 {[%emt 0:00:30]} 22. Qc3+ {[%emt 0:09:30]} Kg8 {[%emt 0:02:30]} 23. Qd3 {[%emt 0:00:30]} Qd7 {[%emt 0:01:30]} 24. b4 {[%emt 0:02:30]} Rxb5 {[%emt 0:11:30]} 25. bxc5 {[%emt 0:00:30]} Rxc5 {[%emt 0:00:30]} 26. Rfc1 {[%emt 0:03:30]} Rfc8 {[%emt 0:00:30]} 27. Rxc5 {[%emt 0:00:30]} Rxc5 {[%emt 0:00:30]} 28. Qd4 {[%emt 0:02:30]} Qc8 {[%emt 0:01:30]} 29. Rb4 {[%emt 0:00:30]} Qh3 {[%emt 0:04:30]} 30. Rb8+ {[%emt 0:00:30]} Rc8 {[%emt 0:00:30]} 31. Rxc8+ {[%emt 0:00:30]} Qxc8 {[%emt 0:00:30]} 32. Kg2 {[%emt 0:00:00]} Qc2 {[%emt 0:00:30]} 33. Kf3 {[%emt 0:03:00]} Qc5 {[%emt 0:04:30]} 34. Qxc5 {[%emt 0:00:30]} dxc5 {[%emt 0:00:30]} 35. Ke3 {[%emt 0:00:00]} Kg7 {[%emt 0:00:30]} 36. f4 {[%emt 0:01:00]} f5 {[%emt 0:02:30]} 37. e5 {[%emt 0:00:00]} Kf7 {[%emt 0:01:30]} 38. Kd3 {[%emt 0:00:00]} Ke8 {[%emt 0:01:30]} 39. Kc4 {[%emt 0:00:30]} Kd7 {[%emt 0:00:00]} 40. Kxc5 {[%emt 0:00:00]} Kc7 {[%emt 0:00:00]} 41. e6 {[%emt 0:01:00]} h6 {[%emt 0:00:30]} 42. h3 {[%emt 0:00:30]} g5 {[%emt 0:00:30]} 43. h4 {[%emt 0:01:30]} gxf4 {[%emt 0:01:30]} 44. gxf4 {[%emt 0:00:00]} h5 {[%emt 0:00:30]} 45. Kc4 {[%emt 0:00:00]} Kd6 {[%emt 0:01:30]} 46. Kd4 {[%emt 0:00:00]} Kc7 {[%emt 0:00:30]} 47. Ke5 {[%emt 0:00:00]} 1-0

[Event "7th Cesme Open-B 2019"]
[Site "Cesme"]
[Date "2019.06.30"]
[Round "9"]
[White "Koker, Turan Sevki"]
[Black "Akcun, Fayik"]
[Result "1-0"]
[ECO "C02"]
[WhiteElo "1725"]
[BlackElo "1642"]
[Annotator "NA"]
[PlyCount "81"]
[EventDate "2019.06.24"]
[EventType "swiss"]
[EventCountry "TUR"]
[SourceTitle "playchess.com"]
[Source "ChessBase"]
[SourceQuality "1"]
[TimeControl "5400+30"]

1. e4 {[%emt 0:00:30]} e6 {[%emt 0:00:30]} 2. d4 {[%emt 0:00:30]} d5 {[%emt 0:00:00]} 3. e5 {[%emt 0:00:00]} c5 {[%emt 0:00:00]} 4. c3 {[%emt 0:00:00]} Nc6 {[%emt 0:00:30]} 5. Nf3 {[%emt 0:00:00]} Bd7 {[%emt 0:03:30]} 6. a3 {[%emt 0:01:00]} c4 {[%emt 0:02:30]} 7. Nbd2 {[%emt 0:00:00]} Be7 {[%emt 0:07:30]} 8. Be2 {[%emt 0:00:00]} Nh6 {[%emt 0:00:30]} 9. O-O {[%emt 0:00:30]} O-O {[%emt 0:01:30]} 10. h3 {[%emt 0:00:00]} Nf5 {[%emt 0:06:30]} 11. g4 {[%emt 0:08:00]} Nh4 {[%emt 0:02:30]} 12. Nxh4 {[%emt 0:00:30]} Bxh4 {[%emt 0:00:30]} 13. f4 {[%emt 0:00:30]} Be7 {[%emt 0:01:30]} 14. Nf3 {[%emt 0:02:30]} f6 {[%emt 0:00:30]} 15. exf6 {[%emt 0:03:30]} Bxf6 {[%emt 0:02:30]} 16. Qe1 {[%emt 0:00:30]} g6 {[%emt 0:09:30]} 17. Bd1 {[%emt 0:01:30]} Qe7 {[%emt 0:02:30]} 18. Bc2 {[%emt 0:01:30]} Nd8 {[%emt 0:00:30]} 19. Kg2 {[%emt 0:00:00]} Nf7 {[%emt 0:00:30]} 20. h4 {[%emt 0:06:00]} Nd6 {[%emt 0:02:30]} 21. Rh1 {[%emt 0:00:00]} Rf7 {[%emt 0:11:30]} 22. h5 {[%emt 0:04:00]} gxh5 {[%emt 0:01:30]} 23. Rxh5 {[%emt 0:01:30]} Bc6 {[%emt 0:07:30]} 24. Be3 {[%emt 0:01:30]} Ne4 {[%emt 0:00:30]} 25. Qe2 {[%emt 0:01:30]} Rg7 {[%emt 0:13:30]} 26. g5 {[%emt 0:01:30]} Be8 {[%emt 0:00:30]} 27. Rh6 {[%emt 0:00:30]} Qf8 {[%emt 0:04:21]} 28. Rah1 {[%emt 0:00:30]} Be7 {[%emt 0:01:12]} 29. Bxe4 {[%emt 0:01:30]} dxe4 {[%emt 0:01:08]} 30. Ne5 {[%emt 0:00:30]} Bd6 {[%emt 0:05:55]} 31. Qxc4 {[%emt 0:00:30]} Bxe5 {[%emt 0:00:05]} 32. Qxe6+ {[%emt 0:00:30]} Bf7 {[%emt 0:02:54]} 33. Qxe5 {[%emt 0:00:00]} Re8 {[%emt 0:00:34]} 34. Qf5 {[%emt 0:00:00]} Be6 {[%emt 0:01:39]} 35. Qxf8+ {[%emt 0:00:30]} Kxf8 {[%emt 0:00:30]} 36. Rxh7 {[%emt 0:00:30]} Bg4 {[%emt 0:00:30]} 37. Rxg7 {[%emt 0:01:30]} Kxg7 {[%emt 0:04:33]} 38. Rh6 {[%emt 0:00:00]} Rh8 {[%emt 0:00:00]} 39. Rxh8 {[%emt 0:00:00]} Kxh8 {[%emt 0:00:00]} 40. d5 {[%emt 0:00:30]} Kg7 {[%emt 0:03:43]} 41. Bxa7 {[%emt 0:00:00]} 1-0